[Event "Open Cappelle-la-Grande"]
[Date "2025.02.20"]
[White "Travadon, Loic"]
[Black "Pranesh M"]
[WhiteElo "2401"]
[BlackElo "2586"]
[Round "8.8.9"]
[Result "0-1"]
[TimeControl "40/5400+30:1800+30"]

1. e4 {[%clk 1:30:58]} 1... c5 {[%clk 1:29:12]} 2. Nf3 {[%clk 1:31:21]} 2... Nc6
{[%clk 1:29:30]} 3. Bb5 {[%clk 1:31:43]} 3... e6 {[%clk 1:29:51]} 4. O-O {[%clk
1:32:02]} 4... Nge7 {[%clk 1:30:07]} 5. Re1 {[%clk 1:32:01]} 5... a6 {[%clk
1:30:24]} 6. Bxc6 {[%clk 1:32:25]} 6... Nxc6 {[%clk 1:30:41]} 7. d4 {[%clk
1:32:43]} 7... cxd4 {[%clk 1:30:58]} 8. Nxd4 {[%clk 1:33:07]} 8... Nxd4 {[%clk
1:31:05]} 9. Qxd4 {[%clk 1:33:29]} 9... b5 {[%clk 1:31:29]} 10. Nc3 {[%clk
1:31:04]} 10... Bb7 {[%clk 1:30:59]} 11. a4 {[%clk 1:31:18]} 11... Bc6 {[%clk
1:30:09]} 12. axb5 {[%clk 1:29:28]} 12... axb5 {[%clk 1:29:55]} 13. Rxa8 {[%clk
1:27:55]} 13... Qxa8 {[%clk 1:29:24]} 14. Bf4 {[%clk 1:26:05]} 14... f6 {[%clk
1:27:48]} 15. Bd6 {[%clk 1:24:22]} 15... Kf7 {[%clk 1:25:11]} 16. h3 {[%clk
1:02:56]} 16... Qa5 {[%clk 1:11:31]} 17. b4 {[%clk 0:56:49]} 17... Qa8 {[%clk
1:06:26]} 18. Bxf8 {[%clk 0:49:05]} 18... Rxf8 {[%clk 1:06:40]} 19. Qc5 {[%clk
0:49:24]} 19... Qa6 {[%clk 0:59:13]} 20. Re3 {[%clk 0:41:15]} 20... Qb7 {[%clk
0:48:47]} 21. Rg3 {[%clk 0:38:31]} 21... Qb8 {[%clk 0:46:14]} 22. Rd3 {[%clk
0:31:30]} 22... Kg8 {[%clk 0:42:15]} 23. Qd6 {[%clk 0:31:01]} 23... Qxd6 {[%clk
0:37:48]} 24. Rxd6 {[%clk 0:31:25]} 24... Ra8 {[%clk 0:37:05]} 25. f3 {[%clk
0:31:37]} 25... Kf7 {[%clk 0:36:30]} 26. Kf2 {[%clk 0:31:45]} 26... Ra3 {[%clk
0:34:54]} 27. Rd3 {[%clk 0:31:55]} 27... e5 {[%clk 0:34:32]} 28. Ke2 {[%clk
0:25:16]} 28... Ke6 {[%clk 0:33:17]} 29. Kf2 {[%clk 0:13:46]} 29... g6 {[%clk
0:32:05]} 30. Ke3 {[%clk 0:13:30]} 30... h5 {[%clk 0:23:45]} 31. g4 {[%clk
0:13:04]} 31... h4 {[%clk 0:21:19]} 32. f4 {[%clk 0:10:07]} 32... exf4+ {[%clk
0:20:15]} 33. Kxf4 {[%clk 0:10:31]} 33... g5+ {[%clk 0:19:32]} 34. Ke3 {[%clk
0:10:38]} 34... Ke5 {[%clk 0:18:58]} 35. Kd2 {[%clk 0:09:33]} 35... d6 {[%clk
0:17:36]} 36. Ke2 {[%clk 0:06:01]} 36... Ra1 {[%clk 0:16:35]} 37. Rf3 {[%clk
0:05:52]} 37... Bd7 {[%clk 0:11:28]} 38. Nd5 {[%clk 0:05:28]} 38... Be6 {[%clk
0:11:53]} 39. Nc3 {[%clk 0:02:27]} 39... Bc4+ {[%clk 0:11:08]} 40. Ke3 {[%clk
0:01:41]} 40... Re1+ {[%clk 0:10:50]} 41. Kd2 {[%clk 0:28:32]} 41... Rf1 {[%clk
0:41:02]} 42. Ke3 {[%clk 0:28:54]} 42... Rxf3+ {[%clk 0:38:01]} 43. Kxf3 {[%clk
0:28:27]} 43... Kd4 {[%clk 0:36:02]} 44. Nd1 {[%clk 0:27:31]} 44... Bf7 {[%clk
0:33:33]} 45. Ne3 {[%clk 0:26:33]} 45... Bg6 {[%clk 0:30:56]} 46. c3+ {[%clk
0:26:12]} 46... Ke5 {[%clk 0:30:25]} 0-1

[Variant "Standard"]
[Site "Europe Echecs"]

[Event "Open Cappelle-la-Grande"]
[Date "2025.02.20"]
[White "Karthik Venkataraman"]
[Black "Gatineau, Yovann"]
[WhiteElo "2600"]
[BlackElo "2358"]
[Round "8.8.10"]
[Result "1-0"]
[TimeControl "40/5400+30:1800+30"]

1. e4 {[%clk 1:30:34]} 1... g6 {[%clk 1:20:08]} 2. d4 {[%clk 1:30:43]} 2... d5
{[%clk 1:20:28]} 3. exd5 {[%clk 1:30:23]} 3... Qxd5 {[%clk 1:20:52]} 4. Nc3
{[%clk 1:30:38]} 4... Qd8 {[%clk 1:21:16]} 5. Bf4 {[%clk 1:29:45]} 5... Bg7
{[%clk 1:21:31]} 6. Nf3 {[%clk 1:30:06]} 6... Nf6 {[%clk 1:21:41]} 7. Qd2 {[%clk
1:30:31]} 7... c6 {[%clk 1:21:50]} 8. Be2 {[%clk 1:29:40]} 8... Be6 {[%clk
1:18:27]} 9. h4 {[%clk 1:25:24]} 9... Nbd7 {[%clk 1:13:27]} 10. Ng5 {[%clk
1:17:30]} 10... Bd5 {[%clk 1:13:21]} 11. Nxd5 {[%clk 1:14:47]} 11... cxd5 {[%clk
1:13:33]} 12. c3 {[%clk 1:12:35]} 12... Qb6 {[%clk 1:09:04]} 13. a4 {[%clk
1:09:24]} 13... O-O {[%clk 1:02:25]} 14. a5 {[%clk 1:06:44]} 14... Qc6 {[%clk
1:02:25]} 15. O-O {[%clk 1:05:30]} 15... Rfe8 {[%clk 1:00:30]} 16. Qe3 {[%clk
1:03:43]} 16... e5 {[%clk 0:51:27]} 17. dxe5 {[%clk 1:03:32]} 17... Ne4 {[%clk
0:48:33]} 18. Bd1 {[%clk 0:50:54]} 18... Bxe5 {[%clk 0:35:20]} 19. Ba4 {[%clk
0:48:57]} 19... Qc7 {[%clk 0:34:09]} 20. Bxe5 {[%clk 0:49:09]} 20... Rxe5 {[%clk
0:34:11]} 21. Nf3 {[%clk 0:47:48]} 21... Re7 {[%clk 0:32:41]} 22. Bxd7 {[%clk
0:48:08]} 22... Rxd7 {[%clk 0:32:15]} 23. Rfe1 {[%clk 0:46:33]} 23... Nd6 {[%clk
0:30:02]} 24. h5 {[%clk 0:39:16]} 24... Nf5 {[%clk 0:25:19]} 25. Qd2 {[%clk
0:39:44]} 25... Qc5 {[%clk 0:21:08]} 26. Re5 {[%clk 0:38:09]} 26... Rad8 {[%clk
0:17:46]} 27. Rae1 {[%clk 0:36:16]} 27... Re7 {[%clk 0:13:11]} 28. Rxe7 {[%clk
0:35:35]} 28... Nxe7 {[%clk 0:13:33]} 29. Qg5 {[%clk 0:36:01]} 29... Nc6 {[%clk
0:12:47]} 30. Nh2 {[%clk 0:33:42]} 30... Qxa5 {[%clk 0:08:26]} 31. Ng4 {[%clk
0:29:40]} 31... Qa2 {[%clk 0:01:27]} 32. Qxd8+ {[%clk 0:29:56]} 32... Nxd8
{[%clk 0:01:52]} 33. Re8+ {[%clk 0:30:22]} 33... Kg7 {[%clk 0:02:19]} 34. h6#
{[%clk 0:30:48]} 1-0

[Variant "Standard"]
[Site "Europe Echecs"]

[Event "Open Cappelle-la-Grande"]
[Date "2025.02.20"]
[White "Laurent-Paoli, Pierre"]
[Black "Das, Arghyadip"]
[WhiteElo "2565"]
[BlackElo "2350"]
[Round "8.8.11"]
[Result "1/2-1/2"]
[TimeControl "40/5400+30:1800+30"]

1. e4 {[%clk 1:18:28]} 1... e5 {[%clk 1:30:02]} 2. Nf3 {[%clk 1:18:51]} 2... Nc6
{[%clk 1:30:24]} 3. Bb5 {[%clk 1:18:58]} 3... a6 {[%clk 1:30:46]} 4. Ba4 {[%clk
1:19:24]} 4... Nf6 {[%clk 1:31:04]} 5. O-O {[%clk 1:19:44]} 5... Nxe4 {[%clk
1:30:43]} 6. d4 {[%clk 1:18:55]} 6... b5 {[%clk 1:31:02]} 7. Bb3 {[%clk
1:19:20]} 7... d5 {[%clk 1:31:26]} 8. dxe5 {[%clk 1:19:38]} 8... Be6 {[%clk
1:31:51]} 9. c3 {[%clk 1:19:28]} 9... Be7 {[%clk 1:32:09]} 10. Nbd2 {[%clk
1:18:18]} 10... Nc5 {[%clk 1:31:44]} 11. Bc2 {[%clk 1:18:38]} 11... d4 {[%clk
1:31:50]} 12. Nb3 {[%clk 1:19:03]} 12... dxc3 {[%clk 1:30:52]} 13. Nxc5 {[%clk
1:15:53]} 13... Bxc5 {[%clk 1:31:00]} 14. Be4 {[%clk 1:16:04]} 14... Qd7 {[%clk
1:26:19]} 15. Qc2 {[%clk 1:11:40]} 15... Bd5 {[%clk 1:24:39]} 16. bxc3 {[%clk
1:08:58]} 16... Bxe4 {[%clk 1:12:45]} 17. Qxe4 {[%clk 1:09:23]} 17... Rd8 {[%clk
1:11:03]} 18. Bg5 {[%clk 1:07:01]} 18... Be7 {[%clk 0:56:28]} 19. h4 {[%clk
0:46:05]} 19... Qd5 {[%clk 0:47:35]} 20. Qf4 {[%clk 0:42:38]} 20... O-O {[%clk
0:39:53]} 21. Rfd1 {[%clk 0:42:14]} 21... Qe6 {[%clk 0:39:01]} 22. Bxe7 {[%clk
0:39:30]} 22... Nxe7 {[%clk 0:35:20]} 23. Ng5 {[%clk 0:38:39]} 23... Qf5 {[%clk
0:22:29]} 24. Qxf5 {[%clk 0:38:42]} 24... Nxf5 {[%clk 0:22:58]} 25. e6 {[%clk
0:39:04]} 25... Rxd1+ {[%clk 0:14:10]} 26. Rxd1 {[%clk 0:39:26]} 26... Nd6
{[%clk 0:14:31]} 27. e7 {[%clk 0:24:40]} 27... Re8 {[%clk 0:13:02]} 28. f3
{[%clk 0:24:36]} 28... h6 {[%clk 0:10:40]} 29. Nh3 {[%clk 0:24:42]} 29... Rxe7
{[%clk 0:11:02]} 30. Nf4 {[%clk 0:25:10]} 30... Re5 {[%clk 0:09:27]} 31. Nd5
{[%clk 0:23:57]} 31... Ne8 {[%clk 0:09:49]} 32. Nb4 {[%clk 0:21:44]} 32... a5
{[%clk 0:07:49]} 33. Nc6 {[%clk 0:22:07]} 33... Rc5 {[%clk 0:07:46]} 34. Nxa5
{[%clk 0:19:56]} 34... Rxc3 {[%clk 0:07:38]} 35. Rd8 {[%clk 0:16:45]} 35... Kf8
{[%clk 0:07:46]} 36. Rb8 {[%clk 0:17:13]} 36... Rc5 {[%clk 0:07:20]} 37. Nb3
{[%clk 0:14:45]} 37... Rd5 {[%clk 0:07:02]} 38. Kf2 {[%clk 0:15:12]} 38... Ke7
{[%clk 0:05:50]} 39. Ke3 {[%clk 0:15:37]} 39... Nd6 {[%clk 0:06:04]} 40. g4
{[%clk 0:16:03]} 40... h5 {[%clk 0:04:44]} 41. Nd4 {[%clk 0:14:26]} 41... Kd7
{[%clk 0:04:30]} 42. Ne2 {[%clk 0:11:02]} 42... Re5+ {[%clk 0:29:43]} 43. Kf2
{[%clk 0:39:05]} 43... c5 {[%clk 0:24:55]} 44. Ra8 {[%clk 0:24:12]} 44... b4
{[%clk 0:21:07]} 45. Nf4 {[%clk 0:20:31]} 45... hxg4 {[%clk 0:16:48]} 46. fxg4
{[%clk 0:20:57]} 46... c4 {[%clk 0:17:14]} 47. h5 {[%clk 0:17:50]} 47... Re4
{[%clk 0:11:54]} 48. Kf3 {[%clk 0:16:42]} 48... c3 {[%clk 0:12:10]} 49. Ra7+
{[%clk 0:15:16]} 49... Kc6 {[%clk 0:09:58]} 50. Nd3 {[%clk 0:13:50]} 50... Kb6
{[%clk 0:07:42]} 51. Rd7 {[%clk 0:12:20]} 51... Rd4 {[%clk 0:04:44]} 52. Nxb4
{[%clk 0:12:46]} 52... Kb5 {[%clk 0:04:36]} 53. Nc2 {[%clk 0:11:52]} 53... Rd2
{[%clk 0:05:01]} 54. Ne3 {[%clk 0:08:24]} 54... Kc6 {[%clk 0:05:10]} 55. Rd8
{[%clk 0:07:21]} 55... c2 {[%clk 0:04:15]} 56. Nxc2 {[%clk 0:07:37]} 56... Rxc2
{[%clk 0:04:43]} 57. Rg8 {[%clk 0:08:02]} 57... Kd5 {[%clk 0:03:24]} 58. Rxg7
{[%clk 0:08:22]} 58... Rxa2 {[%clk 0:02:38]} 59. g5 {[%clk 0:07:23]} 59... Rh2
{[%clk 0:02:23]} 60. h6 {[%clk 0:06:16]} 60... Ke6 {[%clk 0:02:23]} 61. g6
{[%clk 0:06:24]} 61... Rxh6 {[%clk 0:02:00]} 62. gxf7 {[%clk 0:06:45]} 62...
Nxf7 {[%clk 0:02:26]} 63. Rg8 {[%clk 0:06:38]} 63... Rh3+ {[%clk 0:02:25]} 64.
Ke2 {[%clk 0:06:56]} 64... Nd6 {[%clk 0:02:38]} 65. Ra8 {[%clk 0:07:06]} 65...
Ke5 {[%clk 0:03:00]} 66. Ra5+ {[%clk 0:07:08]} 66... Kf4 {[%clk 0:03:07]} 67.
Ra8 {[%clk 0:07:20]} 67... Nc4 {[%clk 0:03:02]} 68. Rf8+ {[%clk 0:07:12]} 68...
Ke4 {[%clk 0:03:29]} 69. Re8+ {[%clk 0:07:38]} 69... Ne5 {[%clk 0:03:51]} 70.
Kd2 {[%clk 0:08:01]} 70... Rd3+ {[%clk 0:03:36]} 71. Kc2 {[%clk 0:08:08]} 71...
Rd7 {[%clk 0:04:01]} 72. Rh8 {[%clk 0:08:08]} 72... Ke3 {[%clk 0:04:18]} 73.
Rh3+ {[%clk 0:08:21]} 73... Nf3 {[%clk 0:04:41]} 74. Kc3 {[%clk 0:08:32]} 74...
Rc7+ {[%clk 0:05:07]} 75. Kb4 {[%clk 0:08:46]} 75... Ke4 {[%clk 0:05:25]} 76.
Rh1 {[%clk 0:08:56]} 76... Rc8 {[%clk 0:05:48]} 77. Rh7 {[%clk 0:08:55]} 77...
Ne5 {[%clk 0:05:42]} 78. Rh4+ {[%clk 0:09:14]} 78... Kd5 {[%clk 0:06:07]} 79.
Rh5 {[%clk 0:09:39]} 79... Rc7 {[%clk 0:06:14]} 80. Kb3 {[%clk 0:09:51]} 80...
Kd4 {[%clk 0:05:39]} 81. Rh4+ {[%clk 0:10:13]} 81... Ke3 {[%clk 0:06:05]} 82.
Rh3+ {[%clk 0:10:34]} 82... Nf3 {[%clk 0:06:31]} 83. Kb4 {[%clk 0:10:48]} 83...
Kd4 {[%clk 0:03:21]} 1/2-1/2

[Variant "Standard"]
[Site "Europe Echecs"]

[Event "Open Cappelle-la-Grande"]
[Date "2025.02.20"]
[White "Harutjunyan, Gevorg"]
[Black "Girel, Joseph"]
[WhiteElo "2350"]
[BlackElo "2484"]
[Round "8.8.12"]
[Result "0-1"]
[TimeControl "40/5400+30:1800+30"]

1. e4 {[%clk 1:30:56]} 1... c5 {[%clk 1:29:57]} 2. Nf3 {[%clk 1:30:51]} 2... Nc6
{[%clk 1:30:18]} 3. d4 {[%clk 1:30:53]} 3... cxd4 {[%clk 1:30:34]} 4. Nxd4
{[%clk 1:31:18]} 4... Nf6 {[%clk 1:29:20]} 5. Nc3 {[%clk 1:31:36]} 5... e6
{[%clk 1:29:40]} 6. Ndb5 {[%clk 1:31:16]} 6... Bc5 {[%clk 1:29:29]} 7. Nd6+
{[%clk 1:30:01]} 7... Ke7 {[%clk 1:29:25]} 8. Bf4 {[%clk 1:30:09]} 8... e5
{[%clk 1:29:47]} 9. Nf5+ {[%clk 1:30:22]} 9... Kf8 {[%clk 1:30:06]} 10. Bg5
{[%clk 1:30:42]} 10... Bb4 {[%clk 1:29:35]} 11. Ne3 {[%clk 1:29:12]} 11... h6
{[%clk 1:28:06]} 12. Bxf6 {[%clk 1:28:05]} 12... Bxc3+ {[%clk 1:28:26]} 13. bxc3
{[%clk 1:28:32]} 13... Qxf6 {[%clk 1:28:46]} 14. Qd3 {[%clk 1:26:04]} 14... h5
{[%clk 1:25:32]} 15. Be2 {[%clk 1:23:38]} 15... d6 {[%clk 1:23:29]} 16. O-O
{[%clk 1:17:13]} 16... Rh6 {[%clk 1:21:21]} 17. Rad1 {[%clk 1:06:42]} 17... Qg5
{[%clk 1:15:03]} 18. Rd2 {[%clk 1:02:44]} 18... Kg8 {[%clk 0:52:11]} 19. Rfd1
{[%clk 1:00:31]} 19... a6 {[%clk 0:46:19]} 20. Nc4 {[%clk 0:42:57]} 20... Bg4
{[%clk 0:42:17]} 21. Qg3 {[%clk 0:39:35]} 21... Qf4 {[%clk 0:38:29]} 22. Bxg4
{[%clk 0:36:50]} 22... hxg4 {[%clk 0:38:47]} 23. Nxd6 {[%clk 0:36:51]} 23... b5
{[%clk 0:32:08]} 24. Rd5 {[%clk 0:29:02]} 24... Re6 {[%clk 0:29:03]} 25. Nb7
{[%clk 0:24:28]} 25... Rc8 {[%clk 0:24:36]} 26. Nc5 {[%clk 0:20:55]} 26... Rf6
{[%clk 0:22:42]} 27. Qxf4 {[%clk 0:14:01]} 27... exf4 {[%clk 0:22:48]} 28. Nxa6
{[%clk 0:11:47]} 28... Ra8 {[%clk 0:17:44]} 29. Nc7 {[%clk 0:05:33]} 29... Rxa2
{[%clk 0:17:40]} 30. R5d2 {[%clk 0:05:33]} 30... f3 {[%clk 0:15:01]} 31. Nxb5
{[%clk 0:04:33]} 31... Rb2 {[%clk 0:13:11]} 32. Nd6 {[%clk 0:02:55]} 32... Re6
{[%clk 0:11:07]} 33. c4 {[%clk 0:02:27]} 33... Ra2 {[%clk 0:09:11]} 34. Kh1
{[%clk 0:00:41]} 34... g6 {[%clk 0:08:23]} 35. h3 {[%clk 0:00:42]} 35... gxh3
{[%clk 0:04:38]} 36. gxf3 {[%clk 0:00:55]} 36... Rf6 {[%clk 0:04:37]} 37. c5
{[%clk 0:00:34]} 37... Rxf3 {[%clk 0:04:09]} 38. Nc4 {[%clk 0:00:35]} 38... Ra4
{[%clk 0:03:34]} 39. Nd6 {[%clk 0:00:54]} 39... Ra5 {[%clk 0:02:55]} 40. c4
{[%clk 0:01:18]} 40... Ne5 {[%clk 0:00:48]} 41. Rd5 {[%clk 0:22:17]} 41... Ng4
{[%clk 0:20:56]} 42. c6 {[%clk 0:22:27]} 42... Rxf2 {[%clk 0:12:03]} 43. c7
{[%clk 0:19:08]} 43... Rh2+ {[%clk 0:12:16]} 44. Kg1 {[%clk 0:19:34]} 44... Rg2+
{[%clk 0:12:37]} 45. Kf1 {[%clk 0:19:59]} 45... Ne3+ {[%clk 0:11:25]} 46. Ke1
{[%clk 0:20:25]} 46... Nc2+ {[%clk 0:10:03]} 47. Kf1 {[%clk 0:20:49]} 47... Ne3+
{[%clk 0:10:32]} 48. Ke1 {[%clk 0:21:13]} 48... Ra8 {[%clk 0:10:49]} 49. Ra5
{[%clk 0:14:12]} 49... Nc2+ {[%clk 0:11:01]} 50. Kf1 {[%clk 0:14:37]} 50... Ne3+
{[%clk 0:11:29]} 51. Ke1 {[%clk 0:15:01]} 51... Rf8 {[%clk 0:10:45]} 0-1

[Variant "Standard"]
[Site "Europe Echecs"]

[Event "Open Cappelle-la-Grande"]
[Date "2025.02.20"]
[White "Lucas, Arthur"]
[Black "Petriashvili, Nikoloz"]
[WhiteElo "2320"]
[BlackElo "2450"]
[Round "8.8.13"]
[Result "0-1"]
[TimeControl "40/5400+30:1800+30"]

1. e4 {[%clk 1:30:01]} 1... g6 {[%clk 1:30:56]} 2. d4 {[%clk 1:30:04]} 2... Bg7
{[%clk 1:31:24]} 3. Nf3 {[%clk 1:29:23]} 3... d6 {[%clk 1:31:20]} 4. Bd3 {[%clk
1:28:05]} 4... Nf6 {[%clk 1:31:21]} 5. O-O {[%clk 1:27:38]} 5... O-O {[%clk
1:30:48]} 6. Re1 {[%clk 1:23:57]} 6... Nc6 {[%clk 1:29:59]} 7. h3 {[%clk
1:23:43]} 7... e5 {[%clk 1:30:23]} 8. c3 {[%clk 1:22:41]} 8... Bd7 {[%clk
1:23:56]} 9. Be3 {[%clk 1:16:21]} 9... a5 {[%clk 1:20:13]} 10. a4 {[%clk
1:12:01]} 10... h6 {[%clk 1:16:16]} 11. Na3 {[%clk 1:09:21]} 11... exd4 {[%clk
1:16:13]} 12. cxd4 {[%clk 1:04:32]} 12... Re8 {[%clk 1:16:41]} 13. Nd2 {[%clk
1:01:56]} 13... Nb4 {[%clk 1:15:23]} 14. Bb1 {[%clk 1:02:11]} 14... b6 {[%clk
1:14:03]} 15. Nb5 {[%clk 0:56:31]} 15... Nh5 {[%clk 1:10:42]} 16. Nc3 {[%clk
0:47:55]} 16... Bc8 {[%clk 1:11:11]} 17. Na2 {[%clk 0:40:44]} 17... c5 {[%clk
1:10:15]} 18. Nc4 {[%clk 0:29:58]} 18... Ba6 {[%clk 1:09:53]} 19. Nxb4 {[%clk
0:29:13]} 19... axb4 {[%clk 1:06:49]} 20. Ba2 {[%clk 0:20:23]} 20... Rxe4 {[%clk
1:05:55]} 21. Qc2 {[%clk 0:14:14]} 21... Nf6 {[%clk 1:01:40]} 22. Nd2 {[%clk
0:05:48]} 22... Re7 {[%clk 0:57:00]} 23. Qxg6 {[%clk 0:01:42]} 23... b3 {[%clk
0:56:20]} 24. Bxb3 {[%clk 0:02:08]} 24... c4 {[%clk 0:56:48]} 25. Qg3 {[%clk
0:00:33]} 25... cxb3 {[%clk 0:52:12]} 26. Bxh6 {[%clk 0:00:59]} 26... Rxe1+
{[%clk 0:52:34]} 27. Rxe1 {[%clk 0:01:25]} 27... Nh5 {[%clk 0:53:02]} 28. Qg4
{[%clk 0:01:16]} 28... Qf6 {[%clk 0:53:28]} 29. Bxg7 {[%clk 0:00:32]} 29... Nxg7
{[%clk 0:53:53]} 30. Ne4 {[%clk 0:00:32]} 30... Qg6 {[%clk 0:53:19]} 31. Qf3
{[%clk 0:00:32]} 31... Rd8 {[%clk 0:50:30]} 32. Nf6+ {[%clk 0:00:49]} 32... Kh8
{[%clk 0:46:56]} 33. Re4 {[%clk 0:01:03]} 33... Nf5 {[%clk 0:47:25]} 34. Rf4
{[%clk 0:00:34]} 34... Bc8 {[%clk 0:47:54]} 35. Nd5 {[%clk 0:00:33]} 35... Nh6
{[%clk 0:37:58]} 36. Rf6 {[%clk 0:00:32]} 36... Qg5 {[%clk 0:38:27]} 37. Ne7
{[%clk 0:00:32]} 37... Bb7 {[%clk 0:35:25]} 38. d5 {[%clk 0:00:31]} 38... Re8
{[%clk 0:35:08]} 39. Rxh6+ {[%clk 0:00:32]} 39... Qxh6 {[%clk 0:35:34]} 40. Qxf7
{[%clk 0:00:53]} 40... Rxe7 {[%clk 0:35:43]} 41. Qxe7 {[%clk 0:01:19]} 41...
Bxd5 {[%clk 0:35:53]} 42. Qe8+ {[%clk 0:19:48]} 42... Bg8 {[%clk 1:03:44]} 43.
Qe1 {[%clk 0:20:02]} 43... Qf6 {[%clk 1:03:19]} 44. Qd2 {[%clk 0:19:56]} 44...
d5 {[%clk 1:03:28]} 45. f4 {[%clk 0:17:20]} 45... d4 {[%clk 1:02:37]} 46. f5
{[%clk 0:11:57]} 46... Bd5 {[%clk 1:01:04]} 47. g4 {[%clk 0:07:18]} 47... Qe5
{[%clk 0:59:03]} 48. Qh6+ {[%clk 0:05:52]} 48... Kg8 {[%clk 0:59:32]} 49. Qg6+
{[%clk 0:06:12]} 49... Kf8 {[%clk 0:59:56]} 50. Qh6+ {[%clk 0:06:34]} 50... Ke8
{[%clk 0:59:34]} 51. Kf2 {[%clk 0:03:19]} 51... Kd7 {[%clk 0:59:23]} 0-1

[Variant "Standard"]
[Site "Europe Echecs"]

[Event "Open Cappelle-la-Grande"]
[Date "2025.02.20"]
[White "Prraneeth Vuppala"]
[Black "Degardin, Sylvain"]
[WhiteElo "2442"]
[BlackElo "2309"]
[Round "8.8.14"]
[Result "1-0"]
[TimeControl "40/5400+30:1800+30"]

1. e4 {[%clk 1:30:45]} 1... e5 {[%clk 1:27:01]} 2. Nf3 {[%clk 1:31:02]} 2... Nc6
{[%clk 1:27:13]} 3. Bb5 {[%clk 1:30:53]} 3... a6 {[%clk 1:27:02]} 4. Ba4 {[%clk
1:31:15]} 4... Nf6 {[%clk 1:27:14]} 5. O-O {[%clk 1:31:02]} 5... Be7 {[%clk
1:27:22]} 6. Re1 {[%clk 1:27:13]} 6... b5 {[%clk 1:27:24]} 7. Bb3 {[%clk
1:27:38]} 7... O-O {[%clk 1:24:39]} 8. h3 {[%clk 1:26:05]} 8... Bb7 {[%clk
1:22:36]} 9. Nc3 {[%clk 1:20:21]} 9... Nd4 {[%clk 1:07:44]} 10. Nxd4 {[%clk
1:16:58]} 10... exd4 {[%clk 1:07:39]} 11. Nd5 {[%clk 1:17:21]} 11... Nxd5 {[%clk
1:04:47]} 12. Bxd5 {[%clk 1:15:42]} 12... Bxd5 {[%clk 0:59:54]} 13. exd5 {[%clk
1:16:10]} 13... Bf6 {[%clk 0:55:13]} 14. d3 {[%clk 1:15:29]} 14... Re8 {[%clk
0:46:57]} 15. Bf4 {[%clk 1:12:02]} 15... d6 {[%clk 0:41:29]} 16. Qg4 {[%clk
1:09:04]} 16... Qc8 {[%clk 0:38:13]} 17. Rxe8+ {[%clk 1:03:21]} 17... Qxe8
{[%clk 0:38:35]} 18. Bd2 {[%clk 1:02:30]} 18... c5 {[%clk 0:27:04]} 19. Re1
{[%clk 0:56:01]} 19... Qc8 {[%clk 0:24:25]} 20. Qxc8+ {[%clk 0:53:55]} 20...
Rxc8 {[%clk 0:24:48]} 21. Bf4 {[%clk 0:54:22]} 21... Rd8 {[%clk 0:03:52]} 22.
Bxd6 {[%clk 0:54:24]} 22... c4 {[%clk 0:04:10]} 23. Bc7 {[%clk 0:53:09]} 23...
Rf8 {[%clk 0:03:44]} 24. d6 {[%clk 0:48:07]} 24... Bd8 {[%clk 0:02:43]} 25. dxc4
{[%clk 0:48:03]} 25... bxc4 {[%clk 0:02:50]} 26. Rd1 {[%clk 0:48:11]} 26... Bf6
{[%clk 0:01:28]} 27. d7 {[%clk 0:48:11]} 27... Ra8 {[%clk 0:00:55]} 28. Re1
{[%clk 0:48:15]} 1-0

[Variant "Standard"]
[Site "Europe Echecs"]

[Event "Open Cappelle-la-Grande"]
[Date "2025.02.20"]
[White "Barp, Alberto"]
[Black "Kurmangaliyeva, Liya"]
[WhiteElo "2437"]
[BlackElo "2251"]
[Round "8.8.15"]
[Result "1-0"]
[TimeControl "40/5400+30:1800+30"]

1. d4 {[%clk 1:29:19]} 1... d5 {[%clk 1:30:15]} 2. c4 {[%clk 1:29:43]} 2... e6
{[%clk 1:30:34]} 3. Nf3 {[%clk 1:30:09]} 3... Nf6 {[%clk 1:30:49]} 4. g3 {[%clk
1:30:36]} 4... Bb4+ {[%clk 1:30:59]} 5. Bd2 {[%clk 1:30:59]} 5... Be7 {[%clk
1:31:08]} 6. Bg2 {[%clk 1:31:25]} 6... O-O {[%clk 1:31:19]} 7. O-O {[%clk
1:31:50]} 7... c6 {[%clk 1:31:34]} 8. Qc2 {[%clk 1:32:15]} 8... Nbd7 {[%clk
1:31:30]} 9. b4 {[%clk 1:31:34]} 9... Ne4 {[%clk 1:20:13]} 10. Be1 {[%clk
1:30:39]} 10... f5 {[%clk 1:12:27]} 11. a4 {[%clk 1:30:07]} 11... g5 {[%clk
1:08:05]} 12. a5 {[%clk 1:03:25]} 12... Bf6 {[%clk 0:56:16]} 13. Qb2 {[%clk
0:54:36]} 13... Qe7 {[%clk 0:43:37]} 14. e3 {[%clk 0:30:43]} 14... Qg7 {[%clk
0:40:28]} 15. Nc3 {[%clk 0:29:42]} 15... h5 {[%clk 0:37:15]} 16. Ne2 {[%clk
0:27:38]} 16... g4 {[%clk 0:25:37]} 17. Nh4 {[%clk 0:26:09]} 17... Nd6 {[%clk
0:16:51]} 18. cxd5 {[%clk 0:25:40]} 18... exd5 {[%clk 0:15:36]} 19. b5 {[%clk
0:24:45]} 19... Bxh4 {[%clk 0:10:52]} 20. gxh4 {[%clk 0:24:54]} 20... Nf6 {[%clk
0:10:48]} 21. Bb4 {[%clk 0:22:57]} 21... Rd8 {[%clk 0:10:52]} 22. Bxd6 {[%clk
0:22:32]} 22... Rxd6 {[%clk 0:11:16]} 23. Qb4 {[%clk 0:22:54]} 23... Rd8 {[%clk
0:09:23]} 24. Nf4 {[%clk 0:22:59]} 24... Bd7 {[%clk 0:06:56]} 25. a6 {[%clk
0:17:42]} 25... Rab8 {[%clk 0:05:49]} 26. bxc6 {[%clk 0:16:32]} 26... bxc6
{[%clk 0:06:06]} 27. Qc5 {[%clk 0:16:59]} 27... Bc8 {[%clk 0:03:07]} 28. Rfb1
{[%clk 0:10:50]} 28... Rxb1+ {[%clk 0:02:11]} 29. Rxb1 {[%clk 0:11:18]} 29...
Qd7 {[%clk 0:02:19]} 30. Rb8 {[%clk 0:09:04]} 30... Ne8 {[%clk 0:01:14]} 31. Ra8
{[%clk 0:07:11]} 31... Qd6 {[%clk 0:00:39]} 32. Rxa7 {[%clk 0:06:13]} 32... Qxc5
{[%clk 0:00:44]} 33. dxc5 {[%clk 0:06:38]} 33... Rd7 {[%clk 0:00:44]} 34. Rxd7
{[%clk 0:03:32]} 34... Bxd7 {[%clk 0:01:08]} 35. a7 {[%clk 0:03:53]} 35... Nc7
{[%clk 0:01:35]} 36. Nxd5 {[%clk 0:03:07]} 36... cxd5 {[%clk 0:01:59]} 37. Bxd5+
{[%clk 0:03:30]} 37... Kf8 {[%clk 0:02:25]} 38. a8=Q+ {[%clk 0:03:54]} 38...
Nxa8 {[%clk 0:02:50]} 39. Bxa8 {[%clk 0:04:20]} 39... Ke7 {[%clk 0:03:10]} 40.
Kg2 {[%clk 0:02:39]} 1-0

[Variant "Standard"]
[Site "Europe Echecs"]